[Event "Czech Youth U16 Boys 2024"]
[Site "Kouty nad Desnou"]
[Date "2024.03.09"]
[Round "1.1"]
[White "Juracak, David"]
[Black "Prazak, Daniel"]
[Result "1/2-1/2"]
[ECO "D85"]
[WhiteElo "1944"]
[BlackElo "2223"]
[Annotator "RC"]
[PlyCount "63"]
[EventDate "2024.03.10"]
[EventType "swiss"]
[EventRounds "9"]
[EventCountry "CZE"]
[SourceTitle "playchess.com"]
[Source "ChessBase"]
[SourceQuality "1"]
[TimeControl "40/5400+30:1800+30"]

1. d4 Nf6 2. c4 g6 3. Nc3 d5 4. cxd5 Nxd5 5. e4 Nxc3 6. bxc3 Bg7 7. Nf3 c5 8. Bb5+ Nc6 9. O-O O-O 10. Bxc6 bxc6 11. Be3 Bg4 12. Qa4 Bxf3 13. gxf3 cxd4 14. cxd4 e5 15. Qxc6 exd4 16. Rad1 Qa5 17. Bxd4 Bxd4 18. Rxd4 Qxa2 19. Ra4 Qb3 20. Kg2 Rac8 21. Qa6 Rc3 22. Rfa1 Qb8 23. Qf6 Rc7 24. R1a3 Re8 25. Ra6 h5 26. R3a5 Rb7 27. Rd6 Qc7 28. Rxh5 gxh5 29. Qg5+ Kf8 30. Qh6+ Kg8 31. Qg5+ Kf8 32. Qh6+ 1/2-1/2

[Event "Czech Youth U16 Boys 2024"]
[Site "Kouty nad Desnou"]
[Date "2024.03.09"]
[Round "1.2"]
[White "Davidek, Zdenek"]
[Black "Andrle, Filip"]
[Result "1-0"]
[ECO "E21"]
[WhiteElo "2135"]
[BlackElo "1943"]
[Annotator "RC"]
[PlyCount "105"]
[EventDate "2024.03.10"]
[EventType "swiss"]
[EventRounds "9"]
[EventCountry "CZE"]
[SourceTitle "playchess.com"]
[Source "ChessBase"]
[SourceQuality "1"]
[TimeControl "40/5400+30:1800+30"]

1. d4 Nf6 2. c4 e6 3. Nf3 Bb4+ 4. Nc3 O-O 5. Qc2 c5 6. dxc5 Na6 7. g3 Nxc5 8. Bg2 d5 9. cxd5 exd5 10. O-O Be6 11. Nb5 Qb6 12. Nbd4 Nce4 13. Qd3 Bc5 14. Be3 a5 15. Rab1 Rfc8 16. Nc2 Bxe3 17. Nxe3 Rd8 18. Nd4 Nd7 19. Nxe6 Qxe6 20. Rbd1 Ndc5 21. Qd4 Rac8 22. Nxd5 Nf6 23. Nxf6+ Qxf6 24. Qxf6 gxf6 25. Bh3 Ne6 26. Bf5 Re8 27. Rd2 Rc5 28. Be4 b5 29. Rfd1 f5 30. Bg2 f4 31. Rd5 Rec8 32. Be4 fxg3 33. hxg3 b4 34. Kg2 Kg7 35. Rd7 Re5 36. Bf3 Rc2 37. R7d2 Rec5 38. Be4 Rxd2 39. Rxd2 a4 40. Bc2 a3 41. bxa3 bxa3 42. Bb3 Rc7 43. e4 Rb7 44. Rd5 Rb4 45. e5 Nd4 46. Bd1 Nb5 47. Rd7 Re4 48. f4 Nd4 49. Kf2 Kg6 50. Rd6+ Kg7 51. Rb6 Kf8 52. Rb4 f5 53. exf6 1-0

[Event "Czech Youth U16 Boys 2024"]
[Site "Kouty nad Desnou"]
[Date "2024.03.09"]
[Round "1.3"]
[White "Tegda, Vojtech"]
[Black "Jasso, Matej"]
[Result "0-1"]
[ECO "B20"]
[WhiteElo "1936"]
[BlackElo "2060"]
[Annotator "RC"]
[PlyCount "46"]
[EventDate "2024.03.10"]
[EventType "swiss"]
[EventRounds "9"]
[EventCountry "CZE"]
[SourceTitle "playchess.com"]
[Source "ChessBase"]
[SourceQuality "1"]
[TimeControl "40/5400+30:1800+30"]

1. e4 c5 2. c4 Nc6 3. Ne2 Nf6 4. Nbc3 e6 5. d4 cxd4 6. Nxd4 Bb4 7. Nxc6 bxc6 8. Bd3 d5 9. cxd5 exd5 10. exd5 Bxc3+ 11. bxc3 Qxd5 12. O-O O-O 13. c4 Qe5 14. Ba3 Re8 15. Qc2 Ng4 16. g3 Qh5 17. h4 Ne5 18. Be2 Bg4 19. Bxg4 Qxg4 20. Kg2 Qf3+ 21. Kh3 Qxa3 22. Rae1 Ng6 23. h5 Nf4+ 0-1

[Event "Czech Youth U16 Boys 2024"]
[Site "Kouty nad Desnou"]
[Date "2024.03.09"]
[Round "1.4"]
[White "Fizer, Marek"]
[Black "Ulcak, Michael"]
[Result "1-0"]
[ECO "C50"]
[WhiteElo "2058"]
[BlackElo "1929"]
[Annotator "RC"]
[PlyCount "67"]
[EventDate "2024.03.10"]
[EventType "swiss"]
[EventRounds "9"]
[EventCountry "CZE"]
[SourceTitle "playchess.com"]
[Source "ChessBase"]
[SourceQuality "1"]
[TimeControl "40/5400+30:1800+30"]

1. e4 e5 2. Nf3 Nc6 3. Bc4 Bc5 4. d3 Nf6 5. Nc3 d6 6. Na4 Bb6 7. a3 Be6 8. Bxe6 fxe6 9. O-O O-O 10. b4 Ne7 11. c4 Bd4 12. Nxd4 exd4 13. f4 e5 14. c5 Qd7 15. Nb2 dxc5 16. bxc5 Qe6 17. f5 Qc6 18. Qb3+ Kh8 19. Bd2 Nd7 20. Rac1 Ng8 21. a4 a6 22. Nc4 Nxc5 23. Qa3 b6 24. Nxe5 Qf6 25. Rxc5 Qe7 26. Bb4 bxc5 27. Bxc5 Qxe5 28. Bxf8 Nf6 29. Qe7 Qxe7 30. Bxe7 Rb8 31. Rc1 Rb3 32. Rxc7 Rxd3 33. Rc8+ Ng8 34. f6 1-0

[Event "Czech Youth U16 Boys 2024"]
[Site "Kouty nad Desnou"]
[Date "2024.03.09"]
[Round "1.5"]
[White "Buchta, Bartolomej"]
[Black "Hladky, Tadeas"]
[Result "0-1"]
[ECO "C02"]
[WhiteElo "1913"]
[BlackElo "2056"]
[Annotator "RC"]
[PlyCount "66"]
[EventDate "2024.03.10"]
[EventType "swiss"]
[EventRounds "9"]
[EventCountry "CZE"]
[SourceTitle "playchess.com"]
[Source "ChessBase"]
[SourceQuality "1"]
[TimeControl "40/5400+30:1800+30"]

1. e4 e6 2. d4 d5 3. e5 c5 4. c3 Nc6 5. Nf3 Qb6 6. Be2 cxd4 7. cxd4 Nh6 8. Na3 Bxa3 9. bxa3 Nf5 10. Be3 Qa5+ 11. Qd2 Qxa3 12. O-O Qe7 13. Rab1 b6 14. Bb5 Bb7 15. Bg5 Qd7 16. g4 Nfe7 17. Rfc1 Rc8 18. Rc3 a6 19. Bxc6 Nxc6 20. Rxb6 O-O 21. Rcb3 Rc7 22. Ne1 f6 23. exf6 gxf6 24. Bh6 Rf7 25. g5 f5 26. f4 Bc8 27. Nf3 Qe8 28. Nh4 Ne7 29. Rg3 Ng6 30. Nxg6 hxg6 31. Qe2 Qa4 32. Rxe6 Bxe6 33. Qxe6 Qd1+ 0-1

[Event "Czech Youth U16 Boys 2024"]
[Site "Kouty nad Desnou"]
[Date "2024.03.09"]
[Round "1.6"]
[White "Hozda, Max"]
[Black "Dvorak, Jan"]
[Result "1-0"]
[ECO "A05"]
[WhiteElo "2032"]
[BlackElo "2154"]
[Annotator "RC"]
[PlyCount "113"]
[EventDate "2024.03.10"]
[EventType "swiss"]
[EventRounds "9"]
[EventCountry "CZE"]
[SourceTitle "playchess.com"]
[Source "ChessBase"]
[SourceQuality "1"]
[TimeControl "40/5400+30:1800+30"]

1. Nf3 Nf6 2. e3 b6 3. b3 Bb7 4. Bb2 e6 5. Be2 Be7 6. O-O O-O 7. c4 d5 8. Nc3 dxc4 9. Bxc4 Nbd7 10. d4 Nd5 11. Qe2 N7f6 12. Rfd1 a6 13. Bd3 Nxc3 14. Bxc3 Qd5 15. Rac1 Bd6 16. Bb2 Kh8 17. Ne1 Qg5 18. e4 Ne8 19. Bb1 c5 20. e5 Be7 21. Rc3 f5 22. exf6 Nxf6 23. Rh3 Rae8 24. Bc1 Qd5 25. dxc5 Qxc5 26. Be3 Qc6 27. Rc1 Qd5 28. Bxb6 e5 29. Be3 e4 30. Rd1 Qc6 31. Bd4 Bc8 32. Rc3 Qe6 33. Rdc1 Bb4 34. Rc6 Qf5 35. Bxf6 Rxf6 36. Rxf6 gxf6 37. Nc2 Bc5 38. b4 Ba7 39. Ne3 Qg5 40. Bxe4 Bxe3 41. Qxe3 Qxe3 42. fxe3 Rxe4 43. Rxc8+ Kg7 44. Ra8 Rxb4 45. Rxa6 Rb2 46. Ra4 Kf7 47. h3 Kg7 48. Kh2 Re2 49. Ra3 Kg6 50. Kg3 Kg7 51. Kf3 Rb2 52. Ra8 Rb4 53. a4 Kg6 54. a5 Ra4 55. a6 Kg7 56. a7 h5 57. g3 1-0

[Event "Czech Youth U16 Boys 2024"]
[Site "Kouty nad Desnou"]
[Date "2024.03.09"]
[Round "1.7"]
[White "Stein, Michael"]
[Black "Setina, Vaclav"]
[Result "0-1"]
[ECO "B30"]
[WhiteElo "1883"]
[BlackElo "2024"]
[Annotator "RC"]
[PlyCount "106"]
[EventDate "2024.03.10"]
[EventType "swiss"]
[EventRounds "9"]
[EventCountry "CZE"]
[SourceTitle "playchess.com"]
[Source "ChessBase"]
[SourceQuality "1"]
[TimeControl "40/5400+30:1800+30"]

1. e4 c5 2. Nf3 Nc6 3. Bb5 Nd4 4. Bc4 d6 5. c3 Ne6 6. d4 g6 7. O-O Bg7 8. Qd3 Nf6 9. h3 O-O 10. Be3 b6 11. Nbd2 Bb7 12. Bxe6 fxe6 13. Ng5 Qd7 14. Rad1 a5 15. Qc2 Rac8 16. dxc5 bxc5 17. Nc4 Qb5 18. Na3 Qc6 19. Nxe6 Nxe4 20. f3 Ng3 21. Nxf8 Nxf1 22. Rxf1 Rxf8 23. Bg5 e6 24. Qe2 d5 25. Re1 e5 26. Qb5 Qxb5 27. Nxb5 Bc6 28. Nc7 h6 29. Bd2 Kf7 30. Na6 c4 31. f4 Ra8 32. Nc5 Bf8 33. Be3 exf4 34. Rf1 g5 35. g3 d4 36. cxd4 Re8 37. Bd2 Bg7 38. Bc3 f3 39. Rf2 h5 40. b3 Re3 41. d5 Bxc3 42. dxc6 Bd4 43. c7 Re8 44. Nb7 Ke7 45. Nxa5 Kd7 46. Kf1 Bxf2 47. Kxf2 c3 48. b4 c2 49. Nb3 g4 50. h4 Kxc7 51. a4 Re2+ 52. Kf1 Re3 53. Nc1 Ra3 0-1

[Event "Czech Youth U16 Boys 2024"]
[Site "Kouty nad Desnou"]
[Date "2024.03.09"]
[Round "1.8"]
[White "Juhanak, Daniel"]
[Black "Zrubek, Dan"]
[Result "1/2-1/2"]
[ECO "D07"]
[WhiteElo "2005"]
[BlackElo "1882"]
[Annotator "RC"]
[PlyCount "70"]
[EventDate "2024.03.10"]
[EventType "swiss"]
[EventRounds "9"]
[EventCountry "CZE"]
[SourceTitle "playchess.com"]
[Source "ChessBase"]
[SourceQuality "1"]
[TimeControl "40/5400+30:1800+30"]

1. d4 d5 2. c4 Nc6 3. cxd5 Qxd5 4. e3 e5 5. Nc3 Bb4 6. a3 Bxc3+ 7. bxc3 exd4 8. cxd4 Nf6 9. Nf3 O-O 10. Be2 Na5 11. O-O Bf5 12. Ne5 c5 13. Bb2 cxd4 14. Qxd4 Qxd4 15. Bxd4 Nb3 16. Ra2 Nxd4 17. exd4 Rad8 18. Bf3 Be4 19. Bxe4 Nxe4 20. Nf3 Rd5 21. Rb2 b6 22. Re1 Ng5 23. Nxg5 Rxg5 24. Rc2 Ra5 25. Rc3 g6 26. g3 Rd8 27. Re4 Rad5 28. Re7 R5d7 29. Rc7 Rxe7 30. Rxe7 Rxd4 31. Rxa7 Rd2 32. h4 h5 33. Kg2 Ra2 34. Kf3 Rb2 35. Ke3 Kg7 1/2-1/2

[Event "Czech Youth U16 Boys 2024"]
[Site "Kouty nad Desnou"]
[Date "2024.03.09"]
[Round "1.9"]
[White "Vysinsky, Otakar"]
[Black "Rybackova, Lucie"]
[Result "1-0"]
[ECO "A16"]
[WhiteElo "1882"]
[BlackElo "1983"]
[Annotator "RC"]
[PlyCount "117"]
[EventDate "2024.03.10"]
[EventType "swiss"]
[EventRounds "9"]
[EventCountry "CZE"]
[SourceTitle "playchess.com"]
[Source "ChessBase"]
[SourceQuality "1"]
[TimeControl "40/5400+30:1800+30"]

1. c4 Nf6 2. Nc3 c5 3. Nf3 g6 4. g3 Bg7 5. Bg2 O-O 6. O-O Nc6 7. e4 d6 8. Re1 e5 9. d3 h6 10. h3 Be6 11. Nd5 Kh7 12. Be3 Ne7 13. Nxe7 Qxe7 14. Nd2 Nd7 15. Kh2 Rab8 16. Rb1 f5 17. f4 exf4 18. Bxf4 Be5 19. exf5 Rxf5 20. Bxe5 Nxe5 21. Ne4 Rbf8 22. Qe2 Qd7 23. Rf1 Kg7 24. Rxf5 Bxf5 25. Nxc5 Qe7 26. Ne4 Re8 27. Re1 Qd7 28. g4 Bxe4 29. Bxe4 b5 30. b3 Qc7 31. Kg2 Qc5 32. Qf2 Qxf2+ 33. Kxf2 bxc4 34. dxc4 Rb8 35. Rd1 Rb6 36. Rd5 Nd7 37. Ke3 Ra6 38. Bb1 Rb6 39. Ra5 a6 40. Rd5 Nf6 41. Rd4 a5 42. Kd2 Kf7 43. Kc3 Nd7 44. a3 Nc5 45. Bc2 Ne6 46. Rd1 Nf4 47. h4 Ne2+ 48. Kb2 Nf4 49. g5 hxg5 50. hxg5 Ke7 51. Re1+ Kd7 52. Rf1 Nh3 53. Rf7+ Kc6 54. Ra7 a4 55. Rxa4 Nxg5 56. Bxg6 Ne6 57. Be4+ Kc5 58. Kc3 Rb8 59. Ra6 1-0

[Event "Czech Youth U16 Boys 2024"]
[Site "Kouty nad Desnou"]
[Date "2024.03.09"]
[Round "1.10"]
[White "Zelba, Lukas"]
[Black "Buchtova, Viktorie"]
[Result "1-0"]
[ECO "A46"]
[WhiteElo "1979"]
[BlackElo "1874"]
[Annotator "RC"]
[PlyCount "51"]
[EventDate "2024.03.10"]
[EventType "swiss"]
[EventRounds "9"]
[EventCountry "CZE"]
[SourceTitle "playchess.com"]
[Source "ChessBase"]
[SourceQuality "1"]
[TimeControl "40/5400+30:1800+30"]

1. d4 Nf6 2. Nf3 e6 3. Bf4 b6 4. Nbd2 Bb7 5. e3 Be7 6. Bd3 d5 7. Ne5 Nbd7 8. c3 O-O 9. Qc2 c5 10. h4 h5 11. Ndf3 Ne4 12. Ng5 Nxe5 13. dxe5 Bxg5 14. hxg5 g6 15. O-O-O Qe7 16. f3 c4 17. Bxe4 dxe4 18. fxe4 Rfd8 19. Rd6 Qe8 20. g4 h4 21. Rxh4 Kg7 22. Rh1 Qe7 23. Rhd1 Qe8 24. Qh2 Qh8 25. Qh6+ Qxh6 26. gxh6+ 1-0

[Event "Czech Youth U16 Boys 2024"]
[Site "Kouty nad Desnou"]
[Date "2024.03.09"]
[Round "1.11"]
[White "Zemek, Antonin"]
[Black "Mikolas, Petr"]
[Result "0-1"]
[ECO "A06"]
[WhiteElo "1870"]
[BlackElo "1957"]
[Annotator "RC"]
[PlyCount "42"]
[EventDate "2024.03.10"]
[EventType "swiss"]
[EventRounds "9"]
[EventCountry "CZE"]
[SourceTitle "playchess.com"]
[Source "ChessBase"]
[SourceQuality "1"]
[TimeControl "40/5400+30:1800+30"]

1. Nf3 d5 2. b3 c5 3. e3 Nf6 4. Bb2 g6 5. c4 dxc4 6. Bxc4 Bg7 7. Nc3 O-O 8. O-O a6 9. Qc2 Bf5 10. e4 Nxe4 11. Nxe4 Bxb2 12. Qxb2 Bxe4 13. Qc3 Bxf3 14. Qxf3 Nc6 15. Rfe1 e6 16. Rac1 Kg7 17. a4 Qxd2 18. Rcd1 Qa5 19. Bxe6 Rae8 20. b4 Qxb4 21. Re4 Nd4 0-1

[Event "Czech Youth U16 Boys 2024"]
[Site "Kouty nad Desnou"]
[Date "2024.03.09"]
[Round "1.12"]
[White "Pressler, Tobias"]
[Black "Zezula, Matej"]
[Result "1-0"]
[ECO "B23"]
[WhiteElo "1954"]
[BlackElo "1825"]
[Annotator "RC"]
[PlyCount "75"]
[EventDate "2024.03.10"]
[EventType "swiss"]
[EventRounds "9"]
[EventCountry "CZE"]
[SourceTitle "playchess.com"]
[Source "ChessBase"]
[SourceQuality "1"]
[TimeControl "40/5400+30:1800+30"]

1. e4 c5 2. Nc3 e6 3. d4 cxd4 4. Qxd4 Nc6 5. Qd3 Bc5 6. Nge2 Nge7 7. Bf4 d5 8. exd5 exd5 9. O-O-O Be6 10. Nb5 Rc8 11. Ned4 a6 12. Nxc6 Rxc6 13. Nd4 Bxd4 14. Qxd4 O-O 15. Bd3 Qa5 16. Kb1 Rfc8 17. Bd2 Qc7 18. g4 b5 19. f4 Bd7 20. Rde1 Re6 21. f5 Nc6 22. Qf2 Rxe1+ 23. Rxe1 Ne5 24. Qg3 Nxd3 25. Qxd3 Qxh2 26. Qxd5 Qc7 27. Bc3 b4 28. Re7 Rf8 29. Rxd7 Qf4 30. Bd2 Qxg4 31. b3 h5 32. f6 Qd1+ 33. Kb2 gxf6 34. Bxb4 Qxd5 35. Rxd5 Rb8 36. Bd6 Rb5 37. Rxb5 axb5 38. a4 1-0

[Event "Czech Youth U16 Boys 2024"]
[Site "Kouty nad Desnou"]
[Date "2024.03.10"]
[Round "2.1"]
[White "Setina, Vaclav"]
[Black "Davidek, Zdenek"]
[Result "1/2-1/2"]
[ECO "B22"]
[WhiteElo "2024"]
[BlackElo "2135"]
[Annotator "RC"]
[PlyCount "97"]
[EventDate "2024.03.10"]
[EventType "swiss"]
[EventCountry "CZE"]
[SourceTitle "playchess.com"]
[Source "ChessBase"]
[SourceQuality "1"]
[TimeControl "40/5400+30:1800+30"]

1. e4 {[%emt 0:00:01]} c5 {[%emt 0:00:07]} 2. c3 {[%emt 0:00:03]} d5 {[%emt 0:00:26]} 3. exd5 {[%emt 0:00:01]} Qxd5 {[%emt 0:00:09]} 4. d4 {[%emt 0:00:03]} Nc6 {[%emt 0:00:17]} 5. Nf3 {[%emt 0:00:21]} Bf5 {[%emt 0:00:14]} 6. Be3 {[%emt 0:00:40]} Nf6 {[%emt 0:00:19]} 7. Be2 {[%emt 0:08:14]} cxd4 {[%emt 0:02:04]} 8. cxd4 {[%emt 0:00:30]} Bxb1 {[%emt 0:00:07]} 9. Qxb1 {[%emt 0:01:39]} e6 {[%emt 0:01:38]} 10. O-O {[%emt 0:00:21]} Bd6 {[%emt 0:00:18]} 11. Rd1 {[%emt 0:01:25]} O-O {[%emt 0:02:09]} 12. Ng5 {[%emt 0:04:30]} Rfd8 {[%emt 0:29:22]} 13. Bf3 {[%emt 0:01:00]} Qa5 {[%emt 0:00:14]} 14. Ne4 {[%emt 0:21:29]} Be7 {[%emt 0:02:42]} 15. Nc5 {[%emt 0:07:19]} Qc7 {[%emt 0:10:11]} 16. b4 {[%emt 0:00:23]} Nd5 {[%emt 0:12:24]} 17. b5 {[%emt 0:04:52]} Nxd4 {[%emt 0:01:24]} 18. Bxd4 {[%emt 0:06:41]} Bxc5 {[%emt 0:00:04]} 19. Qb3 {[%emt 0:01:55]} Bxd4 {[%emt 0:00:51]} 20. Rxd4 {[%emt 0:00:01]} Nf6 {[%emt 0:04:11]} 21. Rc4 {[%emt 0:02:47]} Qb6 {[%emt 0:00:28]} 22. Rac1 {[%emt 0:00:14]} Ne8 {[%emt 0:04:24]} 23. a4 {[%emt 0:04:24]} Rd2 {[%emt 0:06:19]} 24. Qe3 {[%emt 0:00:05]} Qd8 {[%emt 0:03:57]} 25. h4 {[%emt 0:00:40]} Rd7 {[%emt 0:00:04]} 26. Qc3 {[%emt 0:02:52]} Nd6 {[%emt 0:04:15]} 27. Rc7 {[%emt 0:01:01]} Qe8 {[%emt 0:02:38]} 28. Rxd7 {[%emt 0:08:35]} Qxd7 {[%emt 0:00:05]} 29. Rd1 {[%emt 0:02:18]} Rd8 {[%emt 0:01:44]} 30. h5 {[%emt 0:01:42]} Qe7 {[%emt 0:01:58]} 31. h6 {[%emt 0:00:52]} gxh6 {[%emt 0:00:06]} 32. Rd4 {[%emt 0:00:58]} f6 {[%emt 0:01:04]} 33. Qe3 {[%emt 0:00:54]} Kh8 {[%emt 0:01:50]} 34. Qxh6 {[%emt 0:02:55]} e5 {[%emt 0:02:32]} 35. Qe3 {[%emt 0:03:08]} b6 {[%emt 0:01:37]} 36. Rd5 {[%emt 0:00:49]} Nf5 {[%emt 0:02:15]} 37. Qc3 {[%emt 0:03:00]} Nd4 {[%emt 0:00:47]} 38. Rxd8+ {[%emt 0:01:47]} Qxd8 {[%emt 0:00:01]} 39. Qe3 {[%emt 0:01:56]} Ne6 {[%emt 0:01:46]} 40. Qb3 {[%emt 0:02:01]} Qe7 {[%emt 0:00:40]} 41. Be4 {[%emt 0:33:11]} Nc5 {[%emt 0:31:08]} 42. Qf3 {[%emt 0:01:19]} Qe6 {[%emt 0:00:00]} 43. Bf5 {[%emt 0:00:00]} e4 {[%emt 0:00:00]} 44. Qf4 {[%emt 0:00:00]} Qe5 {[%emt 0:00:00]} 45. Qh6 {[%emt 0:00:00]} Qa1+ {[%emt 0:00:00]} 46. Kh2 {[%emt 0:00:00]} Qe5+ {[%emt 0:00:00]} 47. Kg1 {[%emt 0:00:00]} Qa1+ {[%emt 0:00:00]} 48. Kh2 {[%emt 0:00:00]} Qe5+ {[%emt 0:00:00]} 49. Kg1 {[%emt 0:00:00]} 1/2-1/2

[Event "Czech Youth U16 Boys 2024"]
[Site "Kouty nad Desnou"]
[Date "2024.03.10"]
[Round "2.2"]
[White "Jasso, Matej"]
[Black "Zelba, Lukas"]
[Result "1-0"]
[ECO "C78"]
[WhiteElo "2060"]
[BlackElo "1979"]
[Annotator "RC"]
[PlyCount "69"]
[EventDate "2024.03.10"]
[EventType "swiss"]
[EventCountry "CZE"]
[SourceTitle "playchess.com"]
[Source "ChessBase"]
[SourceQuality "1"]
[TimeControl "40/5400+30:1800+30"]

1. e4 {[%emt 0:00:03]} e5 {[%emt 0:00:12]} 2. Nf3 {[%emt 0:00:10]} Nc6 {[%emt 0:00:04]} 3. Bb5 {[%emt 0:00:04]} a6 {[%emt 0:00:52]} 4. Ba4 {[%emt 0:00:06]} Nf6 {[%emt 0:00:07]} 5. O-O {[%emt 0:00:53]} b5 {[%emt 0:00:06]} 6. Bb3 {[%emt 0:00:04]} Bc5 {[%emt 0:00:35]} 7. c3 {[%emt 0:01:14]} d6 {[%emt 0:05:28]} 8. Re1 {[%emt 0:02:21]} O-O {[%emt 0:00:41]} 9. d3 {[%emt 0:07:50]} h6 {[%emt 0:11:08]} 10. Nbd2 {[%emt 0:00:06]} Ng4 {[%emt 0:10:38]} 11. Re2 {[%emt 0:01:06]} Be6 {[%emt 0:05:07]} 12. h3 {[%emt 0:01:55]} Nf6 {[%emt 0:00:14]} 13. Nf1 {[%emt 0:00:43]} Bxb3 {[%emt 0:03:02]} 14. Qxb3 {[%emt 0:00:12]} Re8 {[%emt 0:00:44]} 15. Ng3 {[%emt 0:03:53]} d5 {[%emt 0:01:20]} 16. Be3 {[%emt 0:05:18]} dxe4 {[%emt 0:04:05]} 17. dxe4 {[%emt 0:01:21]} Na5 {[%emt 0:00:32]} 18. Qc2 {[%emt 0:00:15]} Bxe3 {[%emt 0:00:12]} 19. Rxe3 {[%emt 0:00:02]} Nc4 {[%emt 0:00:05]} 20. Rd3 {[%emt 0:01:38]} Qc8 {[%emt 0:06:50]} 21. Nh4 {[%emt 0:07:53]} Nd6 {[%emt 0:07:53]} 22. Qe2 {[%emt 0:01:55]} Qb7 {[%emt 0:11:22]} 23. Re1 {[%emt 0:01:47]} Rad8 {[%emt 0:01:37]} 24. Qf3 {[%emt 0:05:15]} Nh7 {[%emt 0:08:30]} 25. Red1 {[%emt 0:07:50]} Qc8 {[%emt 0:05:25]} 26. Nhf5 {[%emt 0:07:16]} Ng5 {[%emt 0:03:03]} 27. Qg4 {[%emt 0:01:18]} Nxf5 {[%emt 0:00:43]} 28. Nxf5 {[%emt 0:00:49]} Kf8 {[%emt 0:00:52]} 29. h4 {[%emt 0:11:22]} Ne6 {[%emt 0:00:50]} 30. Qg3 {[%emt 0:00:15]} f6 {[%emt 0:04:21]} 31. Qg6 {[%emt 0:01:52]} Rxd3 {[%emt 0:03:42]} 32. Rxd3 {[%emt 0:00:23]} Rd8 {[%emt 0:00:54]} 33. Qh7 {[%emt 0:09:04]} c5 {[%emt 0:04:35]} 34. Rd6 {[%emt 0:03:41]} Re8 {[%emt 0:01:10]} 35. Rxe6 {[%emt 0:00:07]} 1-0

[Event "Czech Youth U16 Boys 2024"]
[Site "Kouty nad Desnou"]
[Date "2024.03.10"]
[Round "2.3"]
[White "Mikolas, Petr"]
[Black "Fizer, Marek"]
[Result "1/2-1/2"]
[ECO "D37"]
[WhiteElo "1957"]
[BlackElo "2058"]
[Annotator "RC"]
[PlyCount "93"]
[EventDate "2024.03.10"]
[EventType "swiss"]
[EventCountry "CZE"]
[SourceTitle "playchess.com"]
[Source "ChessBase"]
[SourceQuality "1"]
[TimeControl "40/5400+30:1800+30"]

1. d4 {[%emt 0:00:04]} d5 {[%emt 0:00:15]} 2. c4 {[%emt 0:00:08]} e6 {[%emt 0:00:17]} 3. Nf3 {[%emt 0:00:09]} Nf6 {[%emt 0:00:37]} 4. Nc3 {[%emt 0:00:10]} Be7 {[%emt 0:00:30]} 5. cxd5 {[%emt 0:07:59]} exd5 {[%emt 0:00:08]} 6. Bg5 {[%emt 0:04:14]} O-O {[%emt 0:02:29]} 7. e3 {[%emt 0:00:07]} c6 {[%emt 0:01:04]} 8. Bd3 {[%emt 0:04:04]} Re8 {[%emt 0:01:56]} 9. O-O {[%emt 0:00:07]} Nbd7 {[%emt 0:02:33]} 10. Qc2 {[%emt 0:06:52]} Nf8 {[%emt 0:02:25]} 11. a3 {[%emt 0:12:42]} a5 {[%emt 0:06:15]} 12. Ne5 {[%emt 0:06:46]} Ng4 {[%emt 0:03:48]} 13. Bxe7 {[%emt 0:04:59]} Qxe7 {[%emt 0:00:17]} 14. Nxg4 {[%emt 0:06:43]} Bxg4 {[%emt 0:00:08]} 15. Kh1 {[%emt 0:08:07]} Ng6 {[%emt 0:07:08]} 16. f3 {[%emt 0:02:20]} Bd7 {[%emt 0:03:23]} 17. Bxg6 {[%emt 0:02:23]} hxg6 {[%emt 0:02:45]} 18. e4 {[%emt 0:01:55]} Qd6 {[%emt 0:13:26]} 19. e5 {[%emt 0:02:08]} Qe7 {[%emt 0:03:52]} 20. Na4 {[%emt 0:05:03]} Bf5 {[%emt 0:05:37]} 21. Qd2 {[%emt 0:00:12]} Qc7 {[%emt 0:07:46]} 22. Rac1 {[%emt 0:05:00]} f6 {[%emt 0:05:32]} 23. f4 {[%emt 0:00:08]} Kf7 {[%emt 0:01:16]} 24. Kg1 {[%emt 0:04:29]} Rh8 {[%emt 0:02:20]} 25. Qe2 {[%emt 0:00:22]} Rh4 {[%emt 0:02:37]} 26. g3 {[%emt 0:00:56]} Rh3 {[%emt 0:01:13]} 27. Nc5 {[%emt 0:02:55]} b6 {[%emt 0:02:43]} 28. Nb3 {[%emt 0:05:16]} Rah8 {[%emt 0:03:39]} 29. Rf2 {[%emt 0:00:03]} Be4 {[%emt 0:00:15]} 30. Qe3 {[%emt 0:01:38]} Rc8 {[%emt 0:09:49]} 31. Nd2 {[%emt 0:00:59]} Bf5 {[%emt 0:00:25]} 32. b4 {[%emt 0:01:45]} axb4 {[%emt 0:03:39]} 33. axb4 {[%emt 0:00:00]} Rhh8 {[%emt 0:00:28]} 34. Qc3 {[%emt 0:00:21]} Qb7 {[%emt 0:00:57]} 35. Nb3 {[%emt 0:01:03]} Rhd8 {[%emt 0:04:58]} 36. Ra2 {[%emt 0:00:50]} Ra8 {[%emt 0:00:33]} 37. Rxa8 {[%emt 0:01:27]} Rxa8 {[%emt 0:00:22]} 38. Qxc6 {[%emt 0:02:00]} Qxc6 {[%emt 0:00:11]} 39. Rxc6 {[%emt 0:00:01]} Ra3 {[%emt 0:00:23]} 40. Nd2 {[%emt 0:01:30]} Rd3 {[%emt 0:00:35]} 41. Nf1 {[%emt 0:30:47]} Rxd4 {[%emt 0:31:01]} 42. Rxb6 {[%emt 0:00:06]} fxe5 {[%emt 0:00:00]} 43. fxe5 {[%emt 0:00:00]} Rd1 {[%emt 0:00:00]} 44. Kf2 {[%emt 0:00:00]} d4 {[%emt 0:00:00]} 45. g4 {[%emt 0:00:00]} Bxg4 {[%emt 0:00:00]} 46. Rd6 {[%emt 0:00:00]} Be6 {[%emt 0:00:00]} 47. Ke2 {[%emt 0:00:00]} 1/2-1/2